bitfinex/quotes_ETHUSD_20250505
["timestamp","ask_amount","ask_price","bid_price","bid_amount"]
[1746486076098,12.67545764,1830.8,1830.4,5.46308307]
[1746486076399,12.67545764,1830.8,1830.4,5.46307781]
[1746486078103,18.1378078,1830.8,1830.4,5.46307781]
[1746486078290,0.70287853,1830.7,1830.4,5.46307781]
[1746486078489,12.67545764,1830.8,1830.4,5.46307781]
[1746486080399,12.67545764,1830.8,1830.4,10.92616269]
[1746486080593,12.67545764,1830.8,1830.4,5.46307781]
[1746486080797,7.21336143,1830.8,1830.5,5.46295732]
[1746486080996,12.67555367,1830.8,1830.4,5.46307781]
[1746486081522,3.0,1830.7,1830.3,4.677]
[1746486081679,5.46344208,1830.4,1830.1,4.669]
[1746486082007,10.76662854,1830.4,1830.1,10.13316252]
[1746486083723,10.76662854,1830.4,1830.1,4.669]
[1746486083899,17.4828217,1830.4,1830.1,4.669]
[1746486084098,9.22982019,1830.3,1830.1,4.669]
[1746486084409,3.7662,1830.3,1830.1,4.669]
[1746486087122,0.7662,1830.3,1830.1,4.669]
[1746486087330,0.7662,1830.3,1830.1,10.133025]
[1746486088442,0.7662,1830.3,1830.1,10.1329738]
[1746486088727,0.7662,1830.3,1830.1,15.59697368]
[1746486088930,0.7662,1830.3,1830.1,15.59694077]
[1746486089531,0.7662,1830.3,1830.1,15.59699349]
[1746486089747,0.7662,1830.3,1830.1,10.13296697]
[1746486089951,3.7676,1830.5,1830.1,10.13296697]
[1746486090969,3.7676,1830.5,1830.2,5.46379949]
[1746486091151,0.7676,1830.5,1830.3,5.46347326]
[1746486091452,0.7676,1830.5,1830.2,5.46368592]
[1746486092137,3.0,1830.6,1830.3,5.46354327]
[1746486092340,3.0,1830.6,1830.4,5.46311822]
[1746486092546,3.0,1830.6,1830.3,5.46354327]
[1746486101561,8.46272266,1830.6,1830.3,5.46354327]
[1746486102721,3.0,1830.6,1830.3,5.46354327]
[1746486105096,3.0,1830.6,1830.1,16.40775748]
[1746486105097,3.07763768,1830.5,1830.1,16.40775748]
[1746486105300,8.54071083,1830.5,1830.1,10.94368772]
[1746486105659,8.54071083,1830.5,1830.1,16.40768375]
[1746486106359,8.54071083,1830.5,1830.2,5.46381278]
[1746486108423,3.07763768,1830.5,1830.3,5.46349759]
[1746486109092,3.0,1830.6,1830.3,5.46349759]
[1746486109296,3.0,1830.6,1830.3,5.46343039]
[1746486109916,3.0,1830.6,1830.3,10.9268906]
[1746486110089,3.0,1830.6,1830.3,6.55611945]
[1746486110299,3.0,1830.6,1830.4,5.46312134]
[1746486111022,3.0,1830.6,1830.3,7.35677161]
[1746486111398,3.0,1830.6,1830.3,12.82019578]
[1746486112320,3.0,1830.6,1830.3,7.35677161]
[1746486112520,3.0,1830.6,1830.4,6.19891589]
[1746486117241,8.46277625,1830.6,1830.2,5.46360753]
[1746486117445,7.76641369,1830.5,1830.1,10.92970895]
[1746486117736,8.52041369,1830.5,1830.2,5.46387087]
[1746486120147,2.30333768,1830.3,1830.1,10.13300895]
[1746486121023,8.52041369,1830.5,1830.1,10.13300895]
[1746486121230,10.21873936,1830.5,1830.2,5.46388372]
[1746486121925,10.21873936,1830.5,1830.1,10.13300895]
[1746486122846,10.21873936,1830.5,1830.1,15.59701958]
[1746486123149,10.21873936,1830.5,1830.1,10.13300895]
[1746486123353,2.30333768,1830.3,1829.9,10.92034031]
[1746486123526,7.76711041,1830.3,1829.9,10.92034031]
[1746486123917,7.76711041,1830.3,1829.9,10.12664031]
[1746486124116,5.46400273,1830.2,1829.9,10.12664031]
[1746486124877,0.7544,1830.1,1829.8,5.46478386]
[1746486125027,9.143867,1830.1,1829.8,10.12678386]
[1746486125547,5.46452777,1830.0,1829.8,4.662]
[1746486125716,9.143867,1830.1,1829.8,4.662]
[1746486125717,9.14395417,1830.1,1829.8,4.662]
[1746486125917,5.46463967,1830.0,1829.8,4.662]
[1746486126127,5.46477949,1829.9,1829.8,4.662]
[1746486126332,5.46463967,1830.0,1829.6,28.19947078]
[1746486126925,10.9293485,1830.0,1829.6,28.19947078]
[1746486127168,5.46463967,1830.0,1829.6,28.19947078]
[1746486127479,6.92549771,1830.0,1829.6,28.19947078]
[1746486127777,1.46085804,1830.0,1829.7,5.46519588]
[1746486128079,9.1439417,1830.1,1829.7,5.46519588]
[1746486128232,3.0,1830.3,1829.7,5.46519588]
[1746486128233,9.28203432,1830.3,1830.0,5.46439259]
[1746486128426,3.8184,1830.3,1830.0,5.46439259]
[1746486128755,3.0,1830.3,1830.1,5.46405448]
[1746486130164,3.0,1830.3,1830.0,6.2817882]
[1746486130567,3.0,1830.3,1830.0,11.74608901]
[1746486130866,6.68145924,1830.3,1830.0,10.9447882]
[1746486131952,6.68145924,1830.3,1830.0,16.40910519]
[1746486132467,6.68145924,1830.3,1830.0,10.9447882]
[1746486132767,6.68145924,1830.3,1830.0,16.40907533]
[1746486132962,3.68145924,1830.3,1830.2,5.46388372]
[1746486133336,3.12173768,1830.6,1830.3,5.46351265]
[1746486133535,3.0,1830.5,1830.3,5.46351265]
[1746486135473,3.0,1830.5,1830.2,11.74508359]
[1746486135968,8.46298888,1830.5,1830.2,6.28119987]
[1746486136144,3.0,1830.5,1830.2,6.28119987]
[1746486137076,3.0,1830.5,1830.2,6.28117645]
[1746486137968,3.0,1830.5,1830.2,11.74487004]
[1746486138175,3.0,1830.5,1830.2,6.28117645]
[1746486139376,3.0,1830.5,1830.2,11.74489217]
[1746486140378,3.0,1830.5,1830.2,6.28117645]
[1746486141070,3.0,1830.5,1830.3,5.46357075]
[1746486141577,3.0,1830.5,1830.2,6.28117645]
[1746486141776,3.0,1830.5,1830.2,11.74486401]
[1746486141967,3.0,1830.5,1830.2,6.28117645]
[1746486142347,3.0,1830.5,1830.3,5.46356507]
[1746486143485,3.0,1830.5,1830.3,5.46341302]
[1746486143693,3.0,1830.5,1830.4,5.46328671]
[1746486143846,3.68145924,1830.8,1830.7,5.46239143]
[1746486145384,3.68145924,1830.8,1830.7,6.27119143]
[1746486145589,3.68145924,1830.8,1830.7,9.12452911]
[1746486145892,0.10396471,1830.8,1830.7,16.71323888]
[1746486146080,0.10396471,1830.8,1830.7,19.71323888]
[1746486146589,4.79925812,1831.3,1830.7,19.71323888]
[1746486146590,0.10396471,1831.2,1831.1,6.26999818]
[1746486146792,0.10396471,1831.2,1831.1,10.92499818]
[1746486147100,0.10396471,1831.2,1831.1,12.18554625]
[1746486151703,2.30333768,1831.7,1831.4,5.46006584]
[1746486151861,2.30333768,1831.7,1831.4,6.24436584]
[1746486152061,2.30333768,1831.7,1831.4,6.29896289]
[1746486152694,3.7813,1831.8,1831.5,5.45982471]
[1746486152991,9.24353045,1832.0,1831.6,10.91912193]
[1746486153194,9.24353045,1832.0,1831.6,5.45952988]
[1746486153573,6.24353045,1832.0,1831.6,5.45952988]
[1746486153791,6.24353045,1832.0,1831.6,5.459524]
[1746486153974,3.0,1831.9,1831.6,5.459524]
[1746486154175,0.7849,1832.8,1832.5,5.45702592]
[1746486154374,5.90677923,1833.0,1832.6,5.45672814]
[1746486154375,12.14746578,1833.0,1832.6,5.45672814]
[1746486154575,3.0,1832.9,1832.6,5.45672814]
[1746486154780,12.14746578,1833.0,1832.6,5.45672814]
[1746486154781,14.45057877,1833.0,1832.6,5.45672814]
[1746486155170,7.8874958,1833.0,1832.7,5.45639501]
[1746486155392,5.58415812,1833.0,1832.6,5.45653371]
[1746486155564,4.79925812,1833.0,1832.7,5.45621644]
[1746486156258,4.79925812,1833.0,1832.8,5.45611971]
[1746486156462,4.79925812,1833.0,1832.7,5.45621644]
[1746486156770,5.45587774,1832.9,1832.6,0.8055]
[1746486156968,7.1025958,1833.0,1832.6,0.8055]
[1746486157169,12.55825018,1833.0,1832.6,6.26207264]
[1746486158403,12.55825018,1833.0,1832.6,6.2620303]
[1746486158695,12.55825018,1833.0,1832.6,6.26199993]
[1746486159802,5.45594663,1832.9,1832.5,10.10983045]
[1746486159975,2.30333768,1832.8,1832.4,0.8285]
[1746486160306,5.45702592,1832.5,1832.2,5.4795]
[1746486160667,7.7601348,1832.6,1832.2,10.93730741]
[1746486160970,5.45712584,1832.5,1832.2,5.4795]
[1746486161311,5.45712584,1832.5,1832.2,4.651]
[1746486163004,5.45712584,1832.5,1832.2,10.10891705]
[1746486163304,8.52109371,1832.6,1832.2,10.10891705]
[1746486163502,6.21775603,1832.6,1832.2,10.10891705]
[1746486164702,5.45703045,1832.5,1832.2,10.10891705]
[1746486165004,5.45754835,1832.4,1832.2,4.651]
[1746486165204,5.45807149,1832.2,1831.9,22.713]
[1746486165506,6.23047149,1832.2,1831.9,22.713]
[1746486166206,6.23047149,1832.2,1831.9,28.17179739]
[1746486166407,6.23039881,1832.2,1831.9,28.17179739]
[1746486166706,0.7724,1832.2,1831.9,28.17179739]
[1746486166894,6.23033228,1832.2,1831.9,28.17179739]
[1746486168306,6.23033228,1832.2,1831.9,22.713]
[1746486169312,0.03677337,1832.1,1831.9,28.1716658]
[1746486169513,0.03677337,1832.1,1832.0,7.76185296]
[1746486169712,0.03677337,1832.1,1832.0,5.45851528]
[1746486170011,0.03677337,1832.1,1832.0,5.51309387]
[1746486171513,0.03677337,1832.1,1832.0,6.26569387]
[1746486172579,0.03677337,1832.1,1832.0,6.21111528]
[1746486172779,0.03677337,1832.1,1832.0,7.38699404]
[1746486176296,0.03677337,1832.1,1832.0,6.63439404]
[1746486178986,0.03677337,1832.1,1831.9,36.3495344]
[1746486179527,0.03677337,1832.1,1831.9,30.89095208]
[1746486179822,0.03677337,1832.1,1831.9,30.89085389]
[1746486179990,0.03677337,1832.1,1832.0,5.45851528]
[1746486195635,0.7514,1832.0,1831.6,0.7982]
[1746486195799,3.05473768,1832.0,1831.7,4.645]
[1746486196129,0.7514,1831.9,1831.7,4.645]
[1746486196631,2.30333768,1831.8,1831.5,4.642]
[1746486196836,0.7514,1831.7,1831.5,10.10187155]
[1746486197201,0.7514,1831.7,1831.5,10.10181271]
[1746486197526,0.7514,1831.8,1831.6,5.45949164]
[1746486197694,0.7514,1831.8,1831.7,5.45940929]
[1746486198126,0.7514,1831.8,1831.6,5.45948285]
[1746486198496,0.7514,1831.8,1831.6,5.45948274]
[1746486198695,0.7514,1831.8,1831.7,5.45940929]
[1746486199975,0.7514,1831.8,1831.6,5.4595389]
[1746486200143,3.05473768,1831.8,1831.5,11.11203757]
[1746486200322,3.05473768,1831.8,1831.5,10.10200211]
[1746486201856,3.05473768,1831.8,1831.5,10.10185076]
[1746486202061,3.05473768,1831.8,1831.6,5.4596607]
[1746486202940,3.05473768,1831.8,1831.5,10.10189809]
[1746486204223,3.05473768,1831.8,1831.5,10.10186061]
[1746486206768,3.05473768,1831.8,1831.5,10.10180393]
[1746486208374,3.0,1831.7,1831.5,4.642]
[1746486208591,3.0,1831.7,1831.3,22.695]
[1746486208592,3.06093768,1831.6,1831.3,22.695]
[1746486208906,3.06093768,1831.6,1831.3,33.61586772]
[1746486209174,3.06093768,1831.6,1831.4,5.46018143]
[1746486209344,3.06093768,1831.6,1831.3,28.15542862]
[1746486209544,3.06093768,1831.6,1831.4,5.46013998]
[1746486212749,0.7576,1831.6,1831.4,10.92022455]
[1746486212973,3.7781,1831.7,1831.4,10.92022455]
[1746486213358,3.7781,1831.7,1831.4,5.46008457]
[1746486215585,3.7781,1831.7,1831.3,12.91896966]
[1746486215875,3.7781,1831.7,1831.3,12.9189368]
[1746486216078,3.7781,1831.7,1831.3,10.10339394]
[1746486216285,2.30333768,1831.6,1831.3,15.56378035]
[1746486216797,2.30333768,1831.6,1831.3,4.643]
[1746486217458,5.46073833,1831.3,1830.9,0.765]
[1746486217662,2.30333768,1831.0,1830.7,10.87124896]
[1746486217878,2.30333768,1830.8,1830.6,23.51952032]
[1746486218191,2.30333768,1830.8,1830.6,5.46260828]
[1746486218493,0.7932,1830.8,1830.7,5.46239143]
[1746486218781,0.7932,1830.8,1830.6,5.46250397]
[1746486219083,0.7932,1830.8,1830.7,5.46239143]
[1746486221283,3.09653768,1830.8,1830.4,13.77645539]
[1746486221471,8.55874501,1830.8,1830.4,13.77666106]
[1746486221992,8.55874501,1830.8,1830.4,10.10726574]
[1746486222288,2.30333768,1830.6,1830.4,4.644]
[1746486222447,2.30333768,1830.6,1830.4,10.10726922]
[1746486222647,2.30333768,1830.6,1830.5,5.46298825]
[1746486222897,2.30333768,1830.6,1830.4,11.11799614]
[1746486223464,2.30333768,1830.6,1830.4,16.58111728]
[1746486223764,2.30333768,1830.6,1830.4,11.1177914]
[1746486224253,2.30333768,1830.6,1830.5,5.46298825]
[1746486225892,2.30333768,1830.6,1830.4,11.1177914]
[1746486226261,2.30333768,1830.6,1830.4,10.10706448]
[1746486226462,2.30333768,1830.6,1830.4,15.57013745]
[1746486226663,2.30333768,1830.6,1830.5,5.46298825]
[1746486228900,2.30333768,1830.6,1830.5,5.42621488]
[1746486229371,2.30333768,1830.6,1830.4,10.10708114]
[1746486230699,2.30333768,1830.6,1830.4,15.57017432]
[1746486231177,2.30333768,1830.6,1830.4,10.10708114]
[1746486231374,2.30333768,1830.6,1830.5,5.46298825]
[1746486231668,2.30333768,1830.6,1830.4,15.57013683]
[1746486231995,2.30333768,1830.6,1830.4,10.10706508]
[1746486232510,2.30333768,1830.6,1830.4,4.644]
[1746486232684,0.7909,1830.5,1830.4,4.644]
[1746486233163,0.7909,1830.5,1830.4,10.10728671]
[1746486234571,2.30333768,1830.6,1830.4,10.10728671]
[1746486234771,2.30333768,1830.6,1830.4,10.1071204]
[1746486235007,0.7909,1830.7,1830.4,15.57020449]
[1746486235509,0.7909,1830.7,1830.4,10.10708409]
[1746486236577,0.7909,1830.7,1830.4,15.57015636]
[1746486236776,0.7909,1830.7,1830.4,10.10707227]
[1746486237313,0.7909,1830.7,1830.4,15.57014276]
[1746486237623,0.7909,1830.7,1830.4,10.10707049]
[1746486237823,2.19277171,1830.7,1830.4,10.10707049]
[1746486238333,10.65519517,1830.7,1830.4,10.10707049]
[1746486238487,10.65519517,1830.7,1830.4,4.644]
[1746486239824,10.65533363,1830.7,1830.4,4.644]
[1746486240024,2.30333768,1830.6,1830.4,4.644]
[1746486240589,7.76605224,1830.6,1830.4,4.644]
[1746486241090,2.30333768,1830.6,1830.4,4.644]
[1746486244533,7.76603174,1830.6,1830.4,4.644]
[1746486244729,2.30333768,1830.6,1830.4,4.644]
[1746486245321,2.30333768,1830.6,1830.3,5.46338897]
[1746486245527,2.30333768,1830.6,1830.3,10.92678617]
[1746486245827,7.76616573,1830.6,1830.3,5.46338897]
[1746486246027,3.84548762,1830.6,1830.3,5.46338897]
[1746486246728,3.84548762,1830.6,1830.3,10.92678471]
[1746486247033,3.84548762,1830.6,1830.4,5.46323517]
[1746486248847,3.84548762,1830.6,1830.3,5.46338897]
[1746486249251,9.30819611,1830.6,1830.3,5.46338897]
[1746486249557,3.84548762,1830.6,1830.3,5.46338897]
[1746486250028,3.84548762,1830.6,1830.3,5.46338507]
[1746486250444,3.84548762,1830.6,1830.3,10.9267783]
[1746486250952,2.30333768,1830.6,1830.4,5.46326268]
[1746486251459,0.7909,1830.7,1830.4,5.46326268]
[1746486251645,0.7909,1830.7,1830.5,5.46294221]
[1746486251957,8.5778069,1830.8,1830.5,5.46294221]
[1746486252858,8.5778069,1830.8,1830.4,6.25756268]
[1746486253152,0.85778069,1830.7,1830.4,6.25756268]
[1746486257250,0.85778069,1830.7,1830.4,6.25740841]
[1746486257453,0.85778069,1830.7,1830.4,11.72049259]
[1746486257651,0.85778069,1830.7,1830.4,6.25738418]
[1746486257830,0.85778069,1830.7,1830.5,5.46293774]
[1746486258219,8.5778069,1830.8,1830.5,5.46293774]
[1746486258760,8.5778069,1830.8,1830.5,5.4529235]
[1746486259556,14.0401671,1830.8,1830.4,6.25737493]
[1746486260067,5.46239994,1830.7,1830.4,5.46307493]
[1746486260939,5.46239994,1830.7,1830.3,5.46346723]
[1746486260940,5.46239994,1830.7,1830.3,10.9268602]
[1746486261140,6.86642062,1830.7,1830.3,10.9268602]
[1746486261675,6.86642062,1830.7,1830.4,5.46326633]
[1746486265083,1.40402068,1830.7,1830.4,5.46314427]
[1746486266044,1.40402068,1830.7,1830.5,5.46293957]
[1746486266353,1.40402068,1830.7,1830.4,5.46314427]
[1746486267183,1.40402068,1830.7,1830.4,5.46311989]
[1746486267358,1.40402068,1830.7,1830.5,5.46297363]
[1746486268076,1.40402068,1830.7,1830.4,5.46309748]
[1746486268248,1.40402068,1830.7,1830.4,5.46308817]
[1746486268542,1.40402068,1830.7,1830.5,5.46297297]
[1746486268743,1.40402068,1830.7,1830.5,5.46288345]
[1746486269087,1.40402068,1830.7,1830.4,5.46307504]
[1746486269760,6.86650435,1830.7,1830.4,5.46307504]
[1746486270905,12.32919366,1830.7,1830.3,5.46344891]
[1746486271107,6.86650435,1830.7,1830.4,5.46325539]
[1746486271261,1.40402068,1830.7,1830.4,5.46308721]
[1746486271461,6.27429789,1830.8,1830.5,5.46278204]
[1746486271661,5.46240462,1830.7,1830.4,5.46313659]
[1746486274158,5.46240462,1830.7,1830.3,10.10240156]
[1746486274386,10.92504783,1830.7,1830.3,10.10240156]
[1746486274592,9.68318216,1830.6,1830.3,4.639]
[1746486274795,9.68318216,1830.6,1830.3,10.10255619]
[1746486276893,4.22034246,1830.6,1830.3,10.10255619]
[1746486277499,9.68307024,1830.6,1830.3,10.10255619]
[1746486278289,4.22034246,1830.6,1830.3,10.10239586]
[1746486278600,9.6831206,1830.6,1830.3,10.10239586]
[1746486278789,0.96831206,1830.5,1830.3,10.10239586]
[1746486279608,0.96831206,1830.5,1830.3,4.639]
[1746486280999,0.96831206,1830.5,1830.3,10.10254067]
[1746486281379,0.96831206,1830.5,1830.3,4.639]
[1746486281877,0.96831206,1830.5,1830.2,5.46367882]
[1746486282393,0.96831206,1830.5,1830.3,5.46342574]
[1746486282569,9.68314342,1830.6,1830.3,5.46342574]
[1746486284303,9.68314342,1830.6,1830.2,5.4636834]
[1746486284803,9.68314342,1830.6,1830.2,5.46367341]
[1746486285098,9.68314342,1830.6,1830.3,5.46357356]
[1746486285295,9.68314342,1830.6,1830.2,5.46367341]
[1746486285516,0.96831434,1830.5,1830.2,5.46366791]
[1746486287704,1.91700478,1830.6,1830.2,5.46371299]
[1746486287909,7.37976368,1830.6,1830.3,5.46345991]
[1746486288707,7.37976368,1830.6,1830.2,6.25471299]
[1746486289006,7.37976368,1830.6,1830.2,6.2546771]
[1746486289509,7.37976368,1830.6,1830.3,5.46350201]
[1746486289703,0.73797637,1830.5,1830.2,6.25466965]
[1746486290009,7.37976368,1830.6,1830.2,11.7183393]
[1746486290617,7.37976368,1830.6,1830.3,5.46356129]
[1746486291605,7.37976368,1830.6,1830.2,11.71834594]
[1746486291810,7.37976368,1830.6,1830.3,5.4635488]
[1746486296825,7.37976368,1830.6,1830.2,11.71834153]
[1746486297322,7.37976368,1830.6,1830.2,6.25466965]
[1746486297490,0.73797637,1830.5,1830.2,6.25466965]
[1746486298220,6.20098272,1830.5,1830.2,6.25466965]
[1746486298428,0.73797637,1830.5,1830.2,6.25466965]
[1746486299628,0.73797637,1830.5,1830.2,5.46366965]
[1746486299826,6.22339962,1830.4,1830.1,4.639]
[1746486300325,7.4658429,1830.4,1830.1,10.10304505]
[1746486300711,5.46364833,1830.3,1830.1,4.639]
[1746486300921,5.46359955,1830.3,1830.1,4.639]
[1746486302131,9.76971175,1830.4,1830.1,4.639]
[1746486303538,10.1901366,1830.4,1830.1,4.639]
[1746486303733,1.01901366,1830.3,1830.1,4.639]
[1746486303903,5.46397607,1830.2,1829.9,5.46475949]
[1746486304226,6.23517607,1830.2,1829.9,5.46475949]
[1746486304526,6.4827506,1830.3,1829.9,5.46457847]
[1746486304725,6.4827506,1830.3,1830.0,5.46429371]
[1746486304726,1.01901366,1830.3,1830.0,5.46429371]
[1746486304945,2.01364328,1830.4,1830.1,5.4640504]
[1746486305243,1.24244328,1830.4,1830.1,5.46399047]
[1746486305419,1.24244328,1830.4,1830.1,10.92800366]
[1746486305722,1.24244328,1830.4,1830.1,5.46399047]
[1746486306430,1.24244328,1830.4,1830.1,5.46398216]
[1746486306643,1.24244328,1830.4,1830.2,5.46387343]
[1746486307455,1.24244328,1830.4,1830.1,5.46396495]
[1746486307940,1.24244328,1830.4,1830.2,5.4638663]
[1746486308536,1.24244328,1830.4,1830.1,5.46396495]
[1746486308948,6.70579396,1830.4,1830.1,5.46396495]
[1746486309243,6.70579396,1830.4,1830.0,5.4643256]
[1746486310141,6.70579396,1830.4,1830.0,5.46428776]
[1746486310645,6.70579396,1830.4,1830.0,10.92855744]
[1746486311143,6.70579396,1830.4,1830.0,10.92853117]
[1746486312107,6.70579396,1830.4,1830.1,5.46414681]
[1746486312853,1.4781794,1830.3,1830.0,5.46426149]
[1746486313151,6.94176563,1830.3,1830.0,5.46426149]
[1746486313321,1.4781794,1830.3,1830.0,5.46426149]
[1746486313523,0.8076,1830.3,1830.0,5.46426149]
[1746486313748,0.8076,1830.3,1830.1,5.46416368]
[1746486314045,0.8076,1830.3,1830.0,5.46426149]
[1746486315539,6.27127348,1830.3,1829.9,6.24462283]
[1746486315739,11.73514574,1830.3,1829.9,5.46462283]
[1746486315923,13.26324594,1830.3,1829.9,5.46462283]
[1746486316123,13.26325791,1830.3,1829.9,5.46462283]
[1746486316749,7.79941198,1830.3,1829.9,5.46462283]
[1746486317323,7.79941198,1830.3,1829.9,10.92921916]
[1746486318948,7.79941198,1830.3,1830.0,5.46443469]
[1746486321850,9.4455983,1830.3,1830.0,5.46443469]
[1746486322747,9.4455983,1830.3,1829.9,5.46458696]
[1746486323149,9.4455983,1830.3,1830.0,5.46435017]
[1746486323872,5.46465626,1830.0,1829.8,4.635]
[1746486324069,7.11049083,1830.1,1829.8,4.635]
[1746486324557,7.11049083,1830.1,1829.8,10.10005852]
[1746486325377,2.42298632,1830.0,1829.8,4.635]
[1746486325779,0.7768,1830.0,1829.8,4.635]
[1746486326387,0.7768,1830.0,1829.7,5.46510952]
[1746486326388,9.17076356,1830.0,1829.7,5.46510952]
[1746486330965,9.17076356,1830.0,1829.6,5.46547137]
[1746486331150,9.17076356,1830.0,1829.7,5.46536929]
[1746486332307,5.46487062,1829.9,1829.6,5.46547137]
[1746486333497,9.17076356,1830.0,1829.6,5.46547137]
[1746486333678,9.17076356,1830.0,1829.7,5.46534485]
[1746486334396,9.17076356,1830.0,1829.6,5.46547137]
[1746486334812,9.17076356,1830.0,1829.7,5.46536154]
[1746486337303,10.24,1830.1,1829.8,5.46487736]
[1746486337686,15.7043084,1830.1,1829.7,6.26270614]
[1746486338007,21.16874084,1830.1,1829.7,6.26270614]
[1746486338175,5.46450305,1830.0,1829.7,6.26270614]
[1746486338374,5.46450305,1830.0,1829.7,5.46520614]
[1746486338575,6.22970305,1830.0,1829.7,5.46520614]
[1746486338929,0.7652,1830.0,1829.7,5.46520614]
[1746486339719,0.7652,1830.0,1828.9,9.90714693]
[1746486339720,5.46572265,1829.6,1828.9,9.90714693]
[1746486339919,5.4658279,1829.6,1829.3,4.63]
[1746486340309,5.4658279,1829.6,1829.3,10.09656922]
[1746486340618,6.26795539,1829.7,1829.3,10.09656922]
[1746486340824,6.26795539,1829.7,1829.3,15.56297407]
[1746486341027,6.26795539,1829.7,1829.4,5.46623908]
[1746486341426,7.48274772,1829.7,1829.4,5.46623908]
[1746486343199,2.01719233,1829.7,1829.4,5.46611106]
[1746486343391,2.01719233,1829.7,1829.4,5.46605263]
[1746486344093,7.48258162,1829.7,1829.4,5.46605263]
[1746486345118,2.01719233,1829.7,1829.4,5.46605263]
[1746486345323,7.48259082,1829.7,1829.4,5.46605263]
[1746486345731,2.01719233,1829.7,1829.4,5.46605263]
[1746486345929,2.01719233,1829.7,1829.5,5.4659641]
[1746486346095,6.25066015,1829.9,1829.5,5.4659641]
[1746486347634,11.71567549,1829.9,1829.5,5.4659641]
[1746486347838,5.4651629,1829.8,1829.4,10.93221764]
[1746486348423,5.4651629,1829.8,1829.5,5.46590477]
[1746486349026,5.4651629,1829.8,1829.4,5.46609508]
[1746486349244,6.63674091,1829.8,1829.5,5.46593501]
[1746486349723,1.17157801,1829.8,1829.5,5.46578031]
[1746486349927,6.25052147,1829.9,1829.6,5.46558038]
[1746486350433,6.25052147,1829.9,1829.5,6.25878031]
[1746486351201,6.670147,1829.9,1829.6,5.46565117]
[1746486351404,6.670147,1829.9,1829.5,6.25878031]
[1746486352936,6.670147,1829.9,1829.6,5.4656582]
[1746486353139,8.27885483,1829.9,1829.6,5.4656582]
[1746486353340,8.27885483,1829.9,1829.5,6.25878031]
[1746486353831,8.27885483,1829.9,1829.5,6.25876726]
[1746486354040,7.8592293,1829.9,1829.6,5.46564553]
[1746486354218,7.8592293,1829.9,1829.5,6.25876726]
[1746486354703,13.32424215,1829.9,1829.5,6.25876726]
[1746486354905,13.32424437,1829.9,1829.5,6.25876726]
[1746486355238,7.8592293,1829.9,1829.5,0.793]
[1746486355429,8.26599837,1829.9,1829.5,6.25867934]
[1746486355610,8.26599837,1829.9,1829.6,5.46562783]
[1746486356047,2.8011769,1829.9,1829.6,5.46562783]
[1746486356340,10.9943,1830.1,1829.8,10.92994575]
[1746486356530,10.9943,1830.1,1829.7,6.23066331]
[1746486356727,10.9943,1830.1,1829.8,5.46491907]
[1746486356940,16.45859186,1830.1,1829.8,5.46491907]
[1746486360166,10.9943,1830.1,1829.8,5.46491907]
[1746486360350,16.45850178,1830.1,1829.8,5.46491907]
[1746486360531,18.46960555,1830.1,1829.8,5.46491907]
[1746486361122,13.00540377,1830.1,1829.9,5.4647645]
[1746486361467,12.25110377,1830.1,1829.9,5.4647645]
[1746486361631,12.25110377,1830.1,1829.8,5.46491907]
[1746486361825,12.25110377,1830.1,1829.8,10.92978348]
[1746486362021,12.25110377,1830.1,1829.9,5.46463725]
[1746486362556,10.24,1830.1,1829.8,0.05464792]
[1746486362762,1.15987974,1830.4,1830.1,5.46418228]
[1746486362947,6.62320606,1830.4,1830.1,5.46418228]
[1746486364164,6.62320606,1830.4,1830.0,5.46434827]
[1746486364362,6.62320606,1830.4,1830.1,5.46415124]
[1746486364662,9.08703057,1830.4,1830.0,5.46434827]
[1746486365574,0.7543,1830.4,1830.1,5.46413316]
[1746486365878,0.7543,1830.4,1830.1,10.92810791]
[1746486366368,0.7543,1830.4,1830.1,5.46397475]
[1746486368245,6.21762873,1830.4,1830.0,10.92859535]
[1746486368445,6.21762873,1830.4,1830.1,5.46415478]
[1746486369869,0.7543,1830.4,1830.1,10.9279745]
[1746486370034,0.7543,1830.4,1830.2,5.46383024]
[1746486370436,10.24651994,1830.5,1830.2,5.4637296]
[1746486370664,10.24651994,1830.5,1830.2,5.46369144]
[1746486370867,10.24651994,1830.5,1830.2,10.92738288]
[1746486371042,10.24651994,1830.5,1830.2,5.46369144]
[1746486373371,12.55186363,1830.5,1830.2,5.46369144]
[1746486374043,18.01486065,1830.5,1830.2,5.46369144]
[1746486374246,12.55186363,1830.5,1830.2,5.46369144]
[1746486375652,12.55186363,1830.5,1830.2,5.46366885]
[1746486375839,12.55186363,1830.5,1830.2,10.9273603]
[1746486376390,12.55186363,1830.5,1830.2,7.09512488]
[1746486376571,12.55186363,1830.5,1830.3,5.46345945]
[1746486377391,12.55186363,1830.5,1830.2,7.09512488]
[1746486377670,12.55186363,1830.5,1830.3,5.4635471]
[1746486378263,10.24651994,1830.5,1830.3,5.46340426]
[1746486378499,10.24651994,1830.5,1830.4,5.46328671]
[1746486379508,10.24651994,1830.5,1830.2,1.63145603]
[1746486379651,10.24651994,1830.5,1830.4,5.46328671]
[1746486379989,0.00651994,1830.5,1830.4,5.46328671]
[1746486384282,0.00651994,1830.5,1830.4,5.51791345]
[1746486384595,0.00651994,1830.5,1830.4,6.69251209]
[1746486385087,0.00651994,1830.5,1830.4,6.63788535]
[1746486386559,0.00651994,1830.5,1830.4,7.39328535]
[1746486387872,0.00651994,1830.5,1830.4,7.44790613]
[1746486388076,0.00651994,1830.5,1830.4,7.39328535]
[1746486388675,0.00651994,1830.5,1830.4,7.44790613]
[1746486388875,0.00651994,1830.5,1830.4,7.39328535]
[1746486392877,0.00651994,1830.5,1830.4,7.44790616]
[1746486393079,0.00651994,1830.5,1830.4,7.39328535]
[1746486393479,0.00651994,1830.5,1830.4,9.75324986]
[1746486394697,0.00651994,1830.5,1830.4,13.30324986]
[1746486395006,0.00651994,1830.5,1830.4,13.24862904]
[1746486395205,0.00651994,1830.5,1830.4,39.73355504]
[1746486396081,0.00651994,1830.5,1830.4,27.09893745]
[1746486396279,0.00651994,1830.5,1830.4,21.21673145]
[1746486399611,0.00651994,1830.5,1830.4,27.34673145]
[1746486401012,0.7893,1831.3,1831.1,5.46100083]
[1746486401217,0.7893,1831.3,1831.1,11.16923448]
[1746486401708,0.7893,1831.3,1831.1,10.07700083]
[1746486404078,0.7893,1831.3,1831.2,5.46089995]
[1746486404915,0.7893,1831.3,1831.1,10.07700083]
[1746486406019,0.7893,1831.3,1831.2,5.46089995]
[1746486406608,0.7893,1831.3,1831.1,4.616]
[1746486406920,0.7703,1831.5,1831.2,5.46089995]
[1746486407481,6.23032034,1831.5,1831.2,5.46089995]
[1746486407814,0.7703,1831.5,1831.2,5.46089995]